fUST/lending_fUST_20250409
["ID","MTS","AMOUNT","RATE_DAILY","PERIOD"]
[357587950,1744200656137,-500.0,0.00019178,2]
[357587951,1744200656147,-555.97,0.00019178,2]
[357587952,1744200656156,-555.97,0.00019178,2]
[357587953,1744200656166,-555.97,0.00019178,2]
[357587954,1744200656176,-555.97,0.00019178,2]
[357587955,1744200656185,-555.97,0.00019178,2]
[357587956,1744200656197,-500.0,0.00019178,2]
[357587957,1744200656207,-500.0,0.00019178,2]
[357587958,1744200656214,-555.97,0.00019178,2]
[357587959,1744200656222,-555.97,0.00019178,2]
[357587960,1744200656229,-555.97,0.00019178,2]
[357587961,1744200656235,-556.18699358,0.00019178,2]
[357587962,1744200656243,-500.0,0.00019178,2]
[357587963,1744200656251,-500.0,0.00019178,2]
[357587964,1744200656261,-501.17,0.00019178,2]
[357587965,1744200656271,-500.0,0.00019178,2]
[357587966,1744200656282,-500.0,0.00019178,2]
[357587967,1744200656292,-723.55,0.00019178,2]
[357587968,1744200656301,-500.0,0.00019178,2]
[357587969,1744200656311,-500.0,0.00019178,2]
[357587970,1744200656321,-500.0,0.00019178,2]
[357587971,1744200656331,-1227.57,0.00019178,2]
[357587972,1744200656340,-500.0,0.00019178,2]
[357587973,1744200656349,-500.0,0.00019178,2]
[357587974,1744200656359,-1259.85,0.00019178,2]
[357587975,1744200656368,-578.32,0.00019178,2]
[357587976,1744200656377,-500.0,0.00019178,2]
[357587977,1744200656387,-500.0,0.00019178,2]
[357587978,1744200656396,-500.0,0.00019178,2]
[357587979,1744200656406,-784.02,0.00019178,2]
[357587980,1744200656415,-500.0,0.00019178,2]
[357587981,1744200656425,-461.23561089,0.00019178,2]
[357587982,1744200656435,-500.0,0.00019178,2]
[357587983,1744200656444,-500.0,0.00019178,2]
[357587984,1744200656453,-500.0,0.00019178,2]
[357587985,1744200656463,-500.0,0.00019178,2]
[357587986,1744200656473,-500.0,0.00019178,2]
[357587987,1744200656483,-500.0,0.00019178,2]
[357587988,1744200656498,-500.0,0.00019178,2]
[357587989,1744200656507,-500.0,0.00019178,2]
[357587990,1744200656517,-500.0,0.00019178,2]
[357587991,1744200656527,-500.0,0.00019178,2]
[357587992,1744200656536,-500.0,0.00019178,2]
[357587993,1744200656546,-500.0,0.00019178,2]
[357587994,1744200656556,-500.0,0.00019178,2]
[357587995,1744200656566,-500.0,0.00019178,2]
[357587996,1744200656575,-500.0,0.00019178,2]
[357587997,1744200656585,-578.07715328,0.00019178,2]
[357587998,1744200656594,-500.0,0.00019178,2]
[357587999,1744200656604,-500.0,0.00019178,2]
[357588000,1744200656613,-1882.71,0.00019178,2]
[357588001,1744200656623,-500.0,0.00019178,2]
[357588002,1744200656632,-500.0,0.00019178,2]
[357588003,1744200656643,-500.0,0.00019178,2]
[357588004,1744200656652,-500.0,0.00019178,2]
[357588005,1744200656663,-500.0,0.00019178,2]
[357588006,1744200656673,-671.79,0.00019178,2]
[357588007,1744200656682,-500.0,0.00019178,2]
[357588008,1744200656692,-500.0,0.00019178,2]
[357588009,1744200656702,-500.0,0.00019178,2]
[357588010,1744200656711,-500.0,0.00019178,2]
[357588011,1744200656720,-685.25,0.00019178,2]
[357588012,1744200656730,-500.0,0.00019178,2]
[357588013,1744200656740,-500.0,0.00019178,2]
[357588014,1744200656750,-500.0,0.00019178,2]
[357588015,1744200656760,-500.0,0.00019178,2]
[357588016,1744200656770,-500.0,0.00019178,2]
[357588017,1744200656779,-500.0,0.00019178,2]
[357588018,1744200656788,-500.0,0.00019178,2]
[357588019,1744200656798,-500.0,0.00019178,2]
[357588020,1744200656808,-241.651154,0.00019178,2]
[357588021,1744200656819,-500.0,0.00019178,2]
[357588022,1744200656830,-500.0,0.00019178,2]
[357588023,1744200656839,-500.0,0.00019178,2]
[357588024,1744200656849,-500.0,0.00019178,2]
[357588025,1744200656859,-339.06436561,0.00019178,2]
[357588026,1744200656868,-500.0,0.00019178,2]
[357588027,1744200656878,-500.0,0.00019178,2]
[357588028,1744200656888,-381.83548521,0.00019178,2]
[357588029,1744200656898,-500.0,0.00019178,2]
[357588030,1744200656907,-500.0,0.00019178,2]
[357588031,1744200656917,-821.52,0.00019178,2]
[357588032,1744200656927,-500.0,0.00019178,2]
[357588033,1744200656936,-586.48,0.00019178,2]
[357588034,1744200656946,-500.0,0.00019178,2]
[357588035,1744200656955,-500.0,0.00019178,2]
[357588036,1744200656965,-500.0,0.00019178,2]
[357588037,1744200656975,-500.0,0.00019178,2]
[357588038,1744200656984,-500.0,0.00019178,2]
[357588039,1744200656993,-500.0,0.00019178,2]
[357588040,1744200657004,-720.18,0.00019178,2]
[357588041,1744200657014,-500.0,0.00019178,2]
[357588042,1744200657023,-500.0,0.00019178,2]
[357588043,1744200657033,-500.0,0.00019178,2]
[357588044,1744200657042,-500.0,0.00019178,2]
[357588045,1744200657052,-500.0,0.00019178,2]
[357588046,1744200657064,-500.0,0.00019178,2]
[357588047,1744200657073,-509.4394454,0.00019178,2]
[357588048,1744200657083,-831.33,0.00019178,2]
[357588049,1744200657093,-500.0,0.00019178,2]
[357588050,1744200657102,-500.0,0.00019178,2]
[357588051,1744200657112,-675.67,0.00019178,2]
[357588052,1744200657121,-756.65,0.00019178,2]
[357588053,1744200657132,-500.0,0.00019178,2]
[357588054,1744200657142,-500.0,0.00019178,2]
[357588055,1744200657152,-500.0,0.00019178,2]
[357588056,1744200657161,-500.0,0.00019178,2]
[357588057,1744200657171,-500.0,0.00019178,2]
[357588058,1744200657180,-500.0,0.00019178,2]
[357588059,1744200657189,-500.0,0.00019178,2]
[357588060,1744200657199,-500.0,0.00019178,2]
[357588061,1744200657335,-500.0,0.00019178,2]
[357588062,1744200657345,-500.0,0.00019178,2]
[357588063,1744200657355,-500.0,0.00019178,2]
[357588064,1744200657364,-500.0,0.00019178,2]
[357588065,1744200657373,-500.0,0.00019178,2]
[357588066,1744200657383,-500.0,0.00019178,2]
[357588067,1744200657393,-500.0,0.00019178,2]
[357588068,1744200657403,-500.0,0.00019178,2]
[357588069,1744200657414,-500.0,0.00019178,2]
[357588070,1744200657423,-500.0,0.00019178,2]
[357588071,1744200657433,-500.0,0.00019178,2]
[357588072,1744200657443,-500.0,0.00019178,2]
[357588073,1744200657452,-500.0,0.00019178,2]
[357588074,1744200657461,-500.0,0.00019178,2]
[357588075,1744200657471,-500.0,0.00019178,2]
[357588076,1744200657481,-500.0,0.00019178,2]
[357588077,1744200657491,-1181.93,0.00019178,2]
[357588078,1744200657502,-500.0,0.00019178,2]
[357588079,1744200657511,-500.0,0.00019178,2]
[357588080,1744200657521,-500.0,0.00019178,2]
[357588081,1744200657531,-1701.04,0.00019178,2]
[357588082,1744200657540,-1957.97,0.00019178,2]
[357588083,1744200657550,-500.0,0.00019178,2]
[357588084,1744200657560,-500.0,0.00019178,2]
[357588085,1744200657570,-4048.22,0.00019178,2]
[357588086,1744200657580,-500.0,0.00019178,2]
[357588087,1744200657590,-500.0,0.00019178,2]
[357588088,1744200657600,-500.0,0.00019178,2]
[357588089,1744200657610,-500.0,0.00019178,2]
[357588090,1744200657621,-500.0,0.00019178,2]
[357588091,1744200657630,-500.0,0.00019178,2]
[357588092,1744200657640,-500.0,0.00019178,2]
[357588093,1744200657649,-1665.64,0.00019178,2]
[357588094,1744200657659,-500.0,0.00019178,2]
[357588095,1744200657669,-500.0,0.00019178,2]
[357588096,1744200657679,-500.0,0.00019178,2]
[357588097,1744200657688,-500.0,0.00019178,2]
[357588098,1744200657699,-500.0,0.00019178,2]
[357588099,1744200657709,-500.0,0.00019178,2]
[357588100,1744200657718,-500.0,0.00019178,2]
[357588101,1744200657727,-2483.5,0.00019178,2]
[357588102,1744200657737,-500.0,0.00019178,2]
[357588103,1744200657747,-500.0,0.00019178,2]
[357588104,1744200657756,-500.0,0.00019178,2]
[357588105,1744200657766,-6027.02,0.00019178,2]
[357588106,1744200657776,-763.18,0.00019178,2]
[357588107,1744200657786,-500.0,0.00019178,2]
[357588108,1744200657796,-500.0,0.00019178,2]
[357588109,1744200657806,-500.0,0.00019178,2]
[357588110,1744200657815,-508.36476768,0.00019178,2]
[357588111,1744200657825,-500.0,0.00019178,2]
[357588112,1744200657835,-500.0,0.00019178,2]
[357588113,1744200657845,-500.0,0.00019178,2]
[357588114,1744200657854,-500.0,0.00019178,2]
[357588115,1744200657864,-500.0,0.00019178,2]
[357588116,1744200657873,-500.0,0.00019178,2]
[357588117,1744200657883,-500.0,0.00019178,2]
[357588118,1744200657893,-220.53266796,0.00019178,2]
[357588119,1744200657902,-7232.35,0.00019178,2]
[357588120,1744200657911,-500.0,0.00019178,2]
[357588121,1744200657921,-956.98,0.00019178,2]
[357588122,1744200657930,-258.22424336,0.00019178,2]
[357588123,1744200657939,-589.92245322,0.00019178,2]
[357588124,1744200657949,-500.0,0.00019178,2]
[357588125,1744200657959,-500.0,0.00019178,2]
[357588126,1744200657968,-336.12975301,0.00019178,2]
[357588127,1744200657978,-193.73013263,0.00019178,2]
[357588128,1744200657987,-500.0,0.00019178,2]
[357588129,1744200657996,-500.0,0.00019178,2]
[357588130,1744200658006,-500.0,0.00019178,2]
[357588131,1744200658016,-500.0,0.00019178,2]
[357588132,1744200658026,-2399.83,0.00019178,2]
[357588133,1744200658035,-514.26051046,0.00019178,2]
[357588134,1744200658044,-500.0,0.00019178,2]
[357588135,1744200658056,-500.0,0.00019178,2]
[357588136,1744200658067,-500.49202349,0.00019178,2]
[357588137,1744200658077,-500.0,0.00019178,2]
[357588138,1744200658086,-500.0,0.00019178,2]
[357588139,1744200658096,-3173.27,0.00019178,2]
[357588140,1744200658108,-911.09,0.00019178,2]
[357588141,1744200658118,-500.0,0.00019178,2]
[357588142,1744200658128,-500.0,0.00019178,2]
[357588143,1744200658139,-500.0,0.00019178,2]
[357588144,1744200658150,-1160.25,0.00019178,2]
[357588145,1744200658160,-1469.99,0.00019178,2]
[357588146,1744200658169,-500.0,0.00019178,2]
[357588147,1744200658179,-500.0,0.00019178,2]
[357588148,1744200658189,-517.0504657,0.00019178,2]
[357588149,1744200658199,-831.98,0.00019178,2]
[357588150,1744200658209,-500.0,0.00019178,2]
[357588151,1744200658219,-500.0,0.00019178,2]
[357588152,1744200658229,-500.0,0.00019178,2]
[357588153,1744200658239,-500.0,0.00019178,2]
[357588154,1744200658248,-996.67,0.00019178,2]
[357588155,1744200658258,-1323.58,0.00019178,2]
[357588156,1744200658267,-500.0,0.00019178,2]
[357588157,1744200658276,-500.0,0.00019178,2]
[357588158,1744200658286,-2244.85,0.00019178,2]
[357588159,1744200658295,-500.0,0.00019178,2]
[357588160,1744200658305,-2232.87,0.00019178,2]
[357588161,1744200658315,-500.0,0.00019178,2]
[357588162,1744200658324,-507.955138,0.00019178,2]
[357588163,1744200658333,-500.0,0.00019178,2]
[357588164,1744200658343,-500.0,0.00019178,2]
[357588165,1744200658352,-500.0,0.00019178,2]
[357588166,1744200658362,-500.0,0.00019178,2]
[357588167,1744200658372,-500.0,0.00019178,2]
[357588168,1744200658382,-500.0,0.00019178,2]
[357588169,1744200658392,-500.0,0.00019178,2]
[357588170,1744200658402,-579.13890346,0.00019178,2]
[357588171,1744200658411,-500.0,0.00019178,2]
[357588172,1744200658421,-500.0,0.00019178,2]
[357588173,1744200658431,-500.0,0.00019178,2]
[357588174,1744200658440,-500.0,0.00019178,2]
[357588175,1744200658449,-500.0,0.00019178,2]
[357588176,1744200658459,-500.0,0.00019178,2]
[357588177,1744200658468,-500.0,0.00019178,2]
[357588178,1744200658478,-500.0,0.00019178,2]
[357588179,1744200658487,-1755.38,0.00019178,2]
[357588180,1744200658497,-500.0,0.00019178,2]
[357588181,1744200658507,-500.0,0.00019178,2]
[357588182,1744200658516,-500.0,0.00019178,2]
[357588183,1744200658525,-500.0,0.00019178,2]
[357588184,1744200658535,-500.0,0.00019178,2]
[357588185,1744200658544,-500.0,0.00019178,2]
[357588186,1744200658554,-324.71266774,0.00019178,2]
[357588187,1744200658563,-500.0,0.00019178,2]
[357588188,1744200658573,-500.0,0.00019178,2]
[357588189,1744200658582,-3291.75,0.00019178,2]
[357588190,1744200658591,-500.0,0.00019178,2]
[357588191,1744200658601,-500.0,0.00019178,2]
[357588192,1744200658610,-500.0,0.00019178,2]
[357588193,1744200658619,-500.0,0.00019178,2]
[357588194,1744200658629,-500.0,0.00019178,2]
[357588195,1744200658638,-500.0,0.00019178,2]
[357588196,1744200658648,-500.0,0.00019178,2]
[357588197,1744200658657,-500.0,0.00019178,2]
[357588198,1744200658667,-500.0,0.00019178,2]
[357588199,1744200658676,-500.0,0.00019178,2]
[357588200,1744200658685,-500.0,0.00019178,2]
[357588201,1744200658695,-637.56,0.00019178,2]
[357588202,1744200658704,-500.0,0.00019178,2]
[357588203,1744200658714,-500.0,0.00019178,2]
[357588204,1744200658724,-500.0,0.00019178,2]
[357588205,1744200658733,-500.0,0.00019178,2]
[357588206,1744200658743,-500.0,0.00019178,2]
[357588207,1744200658752,-500.0,0.00019178,2]
[357588208,1744200658762,-500.0,0.00019178,2]
[357588209,1744200658771,-543.48,0.00019178,2]
[357588210,1744200658781,-500.0,0.00019178,2]
[357588211,1744200658791,-500.0,0.00019178,2]
[357588212,1744200658800,-500.0,0.00019178,2]
[357588213,1744200658810,-500.0,0.00019178,2]
[357588214,1744200658820,-500.0,0.00019178,2]
[357588215,1744200658830,-500.0,0.00019178,2]
[357588216,1744200658839,-500.0,0.00019178,2]
[357588217,1744200658849,-500.0,0.00019178,2]
[357588218,1744200658858,-4609.32,0.00019178,2]
[357588219,1744200658868,-500.0,0.00019178,2]
[357588220,1744200658877,-500.0,0.00019178,2]
[357588221,1744200658887,-500.0,0.00019178,2]
[357588222,1744200658896,-500.0,0.00019178,2]
[357588223,1744200658906,-516.15264027,0.00019178,2]
[357588224,1744200658916,-500.0,0.00019178,2]
[357588225,1744200658967,-500.0,0.00019178,2]
[357588226,1744200658976,-500.0,0.00019178,2]
[357588227,1744200658986,-500.0,0.00019178,2]
[357588228,1744200658995,-500.0,0.00019178,2]
[357588229,1744200659005,-3674.5,0.00019178,2]
[357588230,1744200659014,-500.0,0.00019178,2]
[357588231,1744200659024,-593.87943891,0.00019178,2]
[357588232,1744200659033,-500.0,0.00019178,2]
[357588233,1744200659043,-2327.98,0.00019178,2]
[357588234,1744200659054,-500.0,0.00019178,2]
[357588235,1744200659065,-500.0,0.00019178,2]
[357588236,1744200659074,-500.0,0.00019178,2]
[357588237,1744200659084,-500.0,0.00019178,2]
[357588238,1744200659094,-500.0,0.00019178,2]
[357588239,1744200659104,-3520.02,0.00019178,2]
[357588240,1744200659113,-5948.19,0.00019178,2]
[357588241,1744200659123,-500.0,0.00019178,2]
[357588242,1744200659134,-500.0,0.00019178,2]
[357588243,1744200659143,-2673.85,0.00019178,2]
[357588244,1744200659152,-500.0,0.00019178,2]
[357588245,1744200659162,-500.0,0.00019178,2]
[357588246,1744200659171,-500.0,0.00019178,2]
[357588247,1744200659181,-500.0,0.00019178,2]
[357588248,1744200659190,-500.0,0.00019178,2]
[357588249,1744200659199,-500.0,0.00019178,2]
[357588250,1744200659209,-500.0,0.00019178,2]
[357588251,1744200659219,-500.0,0.00019178,2]
[357588252,1744200659228,-500.0,0.00019178,2]
[357588253,1744200659237,-500.0,0.00019178,2]
[357588254,1744200659246,-500.8240849,0.00019178,2]
[357588255,1744200659256,-500.0,0.00019178,2]
[357588256,1744200659265,-500.0,0.00019178,2]
[357588257,1744200659274,-1280.34,0.00019178,2]
[357588258,1744200659283,-500.0,0.00019178,2]
[357588259,1744200659293,-500.0,0.00019178,2]
[357588260,1744200659302,-500.0,0.00019178,2]
[357588261,1744200659311,-1325.37,0.00019178,2]
[357588262,1744200659320,-500.0,0.00019178,2]
[357588263,1744200659332,-500.0,0.00019178,2]
[357588264,1744200659342,-500.0,0.00019178,2]
[357588265,1744200659351,-1275.88,0.00019178,2]
[357588266,1744200659361,-500.0,0.00019178,2]
[357588267,1744200659370,-513.97000995,0.00019178,2]
[357588268,1744200659380,-500.0,0.00019178,2]
[357588269,1744200659389,-500.0,0.00019178,2]
[357588270,1744200659399,-500.0,0.00019178,2]
[357588271,1744200659409,-500.0,0.00019178,2]
[357588272,1744200659419,-670.68,0.00019178,2]
[357588273,1744200659429,-500.0,0.00019178,2]
[357588274,1744200659439,-588.94,0.00019178,2]
[357588275,1744200659449,-500.0,0.00019178,2]
[357588276,1744200659460,-500.0,0.00019178,2]
[357588277,1744200659470,-553.16,0.00019178,2]
[357588278,1744200659480,-500.0,0.00019178,2]
[357588279,1744200659490,-500.0,0.00019178,2]
[357588280,1744200659501,-500.0,0.00019178,2]
[357588281,1744200659511,-500.0,0.00019178,2]
[357588282,1744200659520,-500.0,0.00019178,2]
[357588283,1744200659530,-500.0,0.00019178,2]
[357588284,1744200659540,-500.0,0.00019178,2]
[357588285,1744200659550,-500.0,0.00019178,2]
[357588286,1744200659560,-500.0,0.00019178,2]
[357588287,1744200659570,-500.0,0.00019178,2]
[357588288,1744200659580,-500.0,0.00019178,2]
[357588289,1744200659590,-500.0,0.00019178,2]
[357588290,1744200659600,-333.19,0.00019178,2]
[357588291,1744200659610,-500.47078541,0.00019178,2]
[357588292,1744200659620,-1378.56,0.00019178,2]
[357588293,1744200659631,-500.0,0.00019178,2]
[357588294,1744200659641,-878.36,0.00019178,2]
[357588295,1744200659651,-500.0,0.00019178,2]
[357588296,1744200659661,-500.0,0.00019178,2]
[357588297,1744200659671,-500.0,0.00019178,2]
[357588298,1744200659681,-3009.76,0.00019178,2]
[357588299,1744200659691,-500.0,0.00019178,2]
[357588300,1744200659701,-500.0,0.00019178,2]
[357588301,1744200659711,-500.0,0.00019178,2]
[357588302,1744200659722,-500.0,0.00019178,2]
[357588303,1744200659732,-500.0,0.00019178,2]
[357588304,1744200659742,-500.0,0.00019178,2]
[357588305,1744200659754,-500.0,0.00019178,2]
[357588306,1744200659764,-2169.19,0.00019178,2]
[357588307,1744200659775,-500.0,0.00019178,2]
[357588308,1744200659785,-500.0,0.00019178,2]
[357588309,1744200659795,-500.0,0.00019178,2]
[357588310,1744200659806,-570.37,0.00019178,2]
[357588311,1744200659816,-500.0,0.00019178,2]
[357588312,1744200659827,-500.0,0.00019178,2]
[357588313,1744200659837,-500.0,0.00019178,2]
[357588314,1744200659849,-1012.91,0.00019178,2]
[357588315,1744200659859,-500.0,0.00019178,2]
[357588316,1744200659870,-2667.62,0.00019178,2]
[357588317,1744200659880,-500.0,0.00019178,2]
[357588318,1744200659890,-4318.57,0.00019178,2]
[357588319,1744200659900,-500.0,0.00019178,2]
[357588320,1744200659911,-4318.57,0.00019178,2]
[357588321,1744200659921,-172.41144949,0.00019178,2]
[357588322,1744200662999,-150.90080723,0.000168,2]
[357588326,1744200826300,-196.2234246,0.00016642,2]
[357588333,1744201153145,-200.95324731,0.00016,2]
[357588334,1744201474019,-223.87239316,0.00016,2]
[357588395,1744201805542,150.80110835,0.00025,120]
[357588407,1744201831862,-280.46674661,0.00016,2]
[357588408,1744201831873,-383.5232779,0.00016642,2]
[357588409,1744201831885,-99.09919277,0.000168,2]
[357588410,1744201831895,-1779.3636812,0.00017073,2]
[357588411,1744201831906,-705.542808,0.00017288,2]
[357588412,1744201831916,-307.394547,0.0001743,2]
[357588413,1744201831926,-244.4048298,0.00017442,2]
[357588414,1744201831935,-701.05474974,0.000175,4]
[357588415,1744201831945,-151.0,0.00017798,2]
[357588417,1744201831955,-155.099457,0.00017798,2]
[357588419,1744201831965,-151.0,0.00017887,2]
[357588420,1744201831975,-300.0,0.00017895,2]
[357588421,1744201831985,-151.0,0.00017899,2]
[357588422,1744201831994,-151.0,0.00017999,2]
[357588423,1744201832004,-151.0,0.00018,2]
[357588424,1744201832014,-151.0,0.00018,2]
[357588425,1744201832024,-151.0,0.00018098,2]
[357588426,1744201832034,-151.0,0.00018098,2]
[357588427,1744201832044,-244.59728303,0.0001815,5]
[357588428,1744201832053,-151.0,0.00018258,2]
[357588429,1744201832063,-185.328499,0.000184,2]
[357588430,1744201832074,-510.6214613,0.00018602,2]
[357588431,1744201832090,-370.082,0.0001864,2]
[357588432,1744201832101,-543.0,0.0001864,2]
[357588433,1744201832114,-706.0,0.0001864,2]
[357588434,1744201832124,-2252.0,0.0001864,2]
[357588435,1744201832134,-401.0,0.0001864,2]
[357588436,1744201832145,-401.0,0.0001864,2]
[357588437,1744201832155,-279.38875432,0.000189,2]
[357588438,1744201832165,-5171.61696142,0.00018974,2]
[357588439,1744201832175,-8698.96138516,0.00019,2]
[357588440,1744201832185,-334.73191966,0.00019074,2]
[357588441,1744201832196,-23520.4566966,0.00019075,2]
[357588459,1744201837868,-6391.98891721,0.00017887,2]
[357588510,1744201842902,-371.7,0.00017887,2]
[357588532,1744201845956,-421.84118023,0.00017887,2]
[357588905,1744201902902,-164.9835011,0.000159,2]
[357588906,1744202059932,334.88798314,0.00015,2]
[357588907,1744202061952,-85.0164989,0.000159,2]
[357588910,1744202285767,-193.15675954,0.0001684,2]
[357588911,1744202383927,-190.95493405,0.00016824,2]
[357588912,1744202439579,-206.76618957,0.00016811,2]
[357588913,1744202488319,-204.0,0.00016766,2]
[357588917,1744202867561,-158.38842396,0.00016766,2]
[357588918,1744202895648,-481.11725077,0.00016573,2]
[357589185,1744203038254,-109.23758983,0.00016573,2]
[357589186,1744203038264,-54.64072874,0.00016766,2]
[357589187,1744203038273,-445.56968183,0.00016811,2]
[357589188,1744203038283,-3113.36304715,0.00016824,2]
[357589189,1744203038293,-355.88984046,0.0001684,2]
[357589190,1744203038303,-500.0,0.00017,2]
[357589191,1744203038312,-810.1985926,0.000175,2]
[357589192,1744203038322,-204.0,0.00017784,2]
[357589193,1744203038332,-250.0,0.00017785,2]
[357589194,1744203038342,-300.0,0.00017817,2]
[357589195,1744203038352,-300.93045099,0.00017817,2]
[357589196,1744203038364,-500.0,0.00017817,2]
[357589197,1744203038373,-500.0,0.00017817,2]
[357589199,1744203038383,-68.9523593,0.00017817,2]
[357589201,1744203038398,-300.66681252,0.00017817,2]
[357589203,1744203038410,-130.38082818,0.00017817,2]
[357589205,1744203038420,-500.0,0.00017817,2]
[357589207,1744203038429,-500.0,0.00017817,2]
[357589208,1744203038439,-500.0,0.00017817,2]
[357589209,1744203038449,-155.64411851,0.00017817,2]
[357589210,1744203038459,-500.62958233,0.00017817,2]
[357589211,1744203038468,-500.0,0.00017817,2]
[357589212,1744203038478,-500.0,0.00017817,2]
[357589213,1744203038488,-239.94796417,0.00017817,2]
[357589214,1744203038500,-260.05203583,0.00017817,2]
[357589215,1744203038510,-500.0,0.00017817,2]
[357589216,1744203038520,-500.0,0.00017817,2]
[357589217,1744203038531,-500.0,0.00017817,2]
[357589218,1744203038541,-500.0,0.00017817,2]
[357589219,1744203038551,-500.0,0.00017817,2]
[357589220,1744203038561,-500.0,0.00017817,2]
[357589221,1744203038571,-500.0,0.00017817,2]
[357589222,1744203038581,-500.0,0.00017817,2]
[357589223,1744203038592,-230.76817301,0.00017817,2]
[357589228,1744203040366,-264.88534969,0.00017817,2]
[357589230,1744203040481,-4.3464773,0.00017817,2]
[357589232,1744203040490,-138.55154888,0.00017817,2]
[357589294,1744203046126,-361.44845112,0.00017817,2]
[357589295,1744203046136,-500.0,0.00017817,2]
[357589296,1744203046146,-500.0,0.00017817,2]
[357589297,1744203046156,-7509.25811644,0.00017818,2]
[357589298,1744203046165,-24900.0,0.00017826,2]
[357589299,1744203046175,-500.0,0.000179,2]
[357589300,1744203046184,-500.0,0.000179,2]
[357589301,1744203046194,-500.0,0.000179,2]
[357589302,1744203046203,-500.0,0.000179,2]
[357589303,1744203046213,-500.0,0.000179,2]
[357589304,1744203046222,-546.48947013,0.00018466,2]
[357589305,1744203046232,-11620.27596913,0.00018467,3]
[357589306,1744203046241,-4525.16484126,0.00018467,2]
[357589307,1744203046252,-296.066,0.00018567,2]
[357589308,1744203046261,-382.966096,0.00018602,2]
[357589309,1744203046271,-1268.4713807,0.00018645,2]
[357589310,1744203046282,-1914.7214,0.00018645,2]
[357589311,1744203173376,10000.0,0.00015001,2]
[357589312,1744203186426,10000.0,0.00015001,2]
[357589313,1744203204121,10000.0,0.00015001,2]
[357589315,1744203216510,10000.0,0.00015001,2]
[357589316,1744203231264,10000.0,0.00015001,2]
[357589317,1744203242232,10000.0,0.00015001,2]
[357589318,1744203255298,10000.0,0.00015001,2]
[357589319,1744203265873,10000.0,0.00015001,2]
[357589320,1744203292782,7251.0,0.00015001,2]
[357589321,1744203451036,-151.0,0.00016818,2]
[357589323,1744203604936,-244.25508319,0.00016699,2]
[357589331,1744204042043,-159.44235699,0.00016663,2]
[357589347,1744204084763,-255.73273917,0.00016663,2]
[357589348,1744204118811,-175.2567,0.00016663,2]
[357589349,1744204145371,-151.0,0.00016663,2]
[357589357,1744204154423,-154.17,0.00016382,2]
[357589404,1744204232327,-303.3165067,0.00016382,2]
[357589405,1744204232337,-696.02505974,0.00016663,2]
[357589406,1744204232346,-236.86216761,0.00016699,2]
[357589408,1744204232356,-202.717512,0.00016818,2]
[357589410,1744204232366,-300.0,0.00017025,2]
[357589411,1744204232376,-24900.0,0.00017026,2]
[357589412,1744204232385,-194.4696632,0.00017157,2]
[357589413,1744204232395,-3959.51923612,0.00017526,2]